bitfinex/quotes_ETHUSD_20220112
["timestamp","ask_amount","ask_price","bid_price","bid_amount"]
[1642030654588,1.15097514,3378.2,3378.1,0.00170527]
[1642030654996,1.15097514,3378.2,3378.1,1.87024407]
[1642030654997,1.74963246,3378.2,3378.1,1.87024407]
[1642030658137,19.14963246,3378.2,3378.1,1.87024407]
[1642030658339,19.14963246,3378.2,3378.1,0.00170527]
[1642030658838,20.14963246,3378.2,3377.5,0.00511581]
[1642030659039,0.1184,3378.1,3377.5,0.00511581]
[1642030659238,18.5184,3378.1,3377.5,0.00511581]
[1642030659439,18.5184,3378.1,3377.4,0.00568423]
[1642030659846,1.1184,3378.1,3377.5,1.70686687]
[1642030660044,0.1184,3378.1,3377.6,1.44071692]
[1642030660242,2.88202333,3378.2,3377.6,1.4452643]
[1642030660440,2.88202333,3378.2,3377.7,0.00397896]
[1642030661099,0.59865732,3378.0,3377.7,1.71084583]
[1642030661498,0.59865732,3378.0,3377.8,0.00341054]
[1642030662501,0.59865732,3378.1,3377.8,1.71027741]
[1642030662901,0.59865732,3378.1,3377.9,0.00284211]
[1642030663202,0.59865732,3378.1,3377.9,1.70970898]
[1642030664201,0.59865732,3378.4,3377.9,1.70970898]
[1642030664404,0.59865732,3378.4,3377.9,3.16154626]
[1642030664838,0.59865732,3378.4,3377.9,1.70970898]
[1642030665041,0.59865732,3378.4,3378.0,1.70686687]
[1642030665539,0.59865732,3378.4,3378.1,0.00170527]
[1642030666746,0.59865732,3378.4,3378.1,1.70857214]
[1642030667146,0.59865732,3378.4,3378.2,0.00113684]
[1642030667347,1.87655234,3378.4,3378.2,0.00113684]
[1642030667548,1.87655234,3378.4,3378.2,2.27553069]
[1642030667549,0.59865732,3378.4,3378.2,2.27553069]
[1642030667752,0.59865732,3378.4,3378.2,0.00113684]
[1642030668147,0.59865732,3378.3,3378.2,1.66263731]
[1642030668805,0.59865732,3378.3,3378.2,4.04984124]
[1642030669006,0.59865732,3378.3,3378.2,1.66263731]
[1642030669211,0.59865732,3378.3,3378.2,2.82187184]
[1642030669411,0.59865732,3378.4,3378.2,1.16037137]
[1642030671515,0.59865732,3378.4,3378.3,1.66052595]
[1642030673232,0.59865732,3378.4,3378.3,3.94262405]
[1642030673433,0.59865732,3378.4,3378.3,1.66052595]
[1642030675340,0.59865732,3378.4,3378.3,7.95691714]
[1642030675536,0.59865732,3378.4,3378.3,4.25691714]
[1642030675737,0.59865732,3378.4,3378.3,4.37531714]
[1642030675999,0.59865732,3378.4,3378.3,4.67531714]
[1642030676199,0.59865732,3378.4,3378.3,6.41529714]
[1642030676801,1.63655623,3379.1,3378.3,5.67531714]
[1642030676999,1.63655623,3379.1,3378.4,1.59804]
[1642030677300,0.00284212,3378.9,3378.5,2.65220253]
[1642030677500,0.00284212,3378.9,3378.6,0.1183]
[1642030677800,0.1184,3379.1,3378.6,0.1183]
[1642030677801,1.26244479,3378.7,3378.6,0.1183]
[1642030678301,0.00170527,3378.7,3378.6,2.47866718]
[1642030678500,0.00170527,3378.7,3378.6,3.77866718]
[1642030678699,0.00170527,3378.7,3378.6,2.47866718]
[1642030678899,0.00170527,3378.7,3378.6,2.36036718]
[1642030679739,1.63645623,3379.5,3378.6,2.36036718]
[1642030679939,0.1183,3379.5,3378.6,2.36036718]
[1642030680143,0.00397897,3379.4,3378.6,4.14012718]
[1642030680341,3.0,3378.7,3378.6,3.40023718]
[1642030680544,3.0,3378.7,3378.6,0.3]
[1642030680740,3.0,3378.7,3378.5,0.1183]
[1642030682345,3.0,3378.7,3378.5,2.41745569]
[1642030683049,3.0,3378.7,3378.6,1.33986]
[1642030683488,3.0,3378.7,3378.6,2.33986]
[1642030684589,3.0,3378.7,3378.6,1.33986]
[1642030684990,3.0,3378.7,3378.6,1.03986]
[1642030685597,3.0,3378.7,3378.5,0.1183]
[1642030685598,3.0,3378.7,3378.5,1.0842265]
[1642030685797,3.0,3378.7,3378.4,0.1183]
[1642030686095,3.0,3378.7,3378.5,0.00113684]
[1642030686496,3.0,3378.7,3378.0,0.00397896]
[1642030688847,23.26220927,3378.7,3378.0,0.00397896]
[1642030689047,24.30020927,3378.7,3378.0,0.00397896]
[1642030689247,24.30020927,3378.7,3377.9,0.00454738]
[1642030689248,1.0,3378.6,3377.9,0.00454738]
[1642030689447,3.2106619,3378.5,3377.8,0.00511581]
[1642030689649,1.35183182,3378.4,3377.6,0.00625265]
[1642030689847,2.86133713,3378.3,3377.6,0.00625265]
[1642030690047,2.7742011,3378.3,3377.6,0.00625265]
[1642030690246,3.06382821,3378.5,3377.5,0.00682108]
[1642030690447,2.94542821,3378.5,3377.5,0.12522108]
[1642030690887,2.94542821,3378.5,3377.6,0.00625265]
[1642030691391,1.15715191,3377.7,3377.6,0.00625265]
[1642030691992,1.15715191,3377.7,3377.5,0.00682108]
[1642030694093,1.2195,3378.3,3377.5,0.00682108]
[1642030694492,6.8752,3378.4,3377.5,0.00682108]
[1642030695146,9.67716943,3378.4,3377.4,0.37522108]
[1642030695344,0.00454739,3378.3,3377.4,0.37522108]
[1642030695544,1.36491623,3377.7,3377.6,0.0062665]
[1642030695953,1.36605308,3377.7,3377.6,0.0062665]
[1642030696951,1.36605308,3377.7,3377.6,1.55416553]
[1642030697251,1.36605308,3377.7,3377.6,1.85416553]
[1642030698052,4.30161419,3377.7,3377.6,1.54796553]
[1642030698252,5.07181419,3377.7,3377.6,1.54796553]
[1642030698507,5.19021419,3377.7,3377.6,1.54796553]
[1642030698901,6.12119921,3377.7,3377.6,1.54796553]
[1642030699101,23.52119921,3377.7,3377.6,1.54796553]
[1642030699902,6.12119921,3377.7,3377.6,1.54796553]
[1642030700103,6.12119921,3377.7,3377.6,6.65e-05]
[1642030700104,1.82072187,3377.7,3377.6,6.65e-05]
[1642030700303,4.05052187,3377.7,3377.6,6.65e-05]
[1642030700604,5.57887694,3377.7,3377.3,7.504]
[1642030701813,0.93098502,3377.6,3377.3,7.504]
[1642030702011,0.93098502,3377.6,3377.3,7.4981]
[1642030702239,0.93098502,3377.6,3377.3,7.4568]
[1642030702438,0.93098502,3377.6,3377.3,7.3152]
[1642030702641,0.93098502,3377.6,3377.3,7.2739]
[1642030703041,2.77017804,3377.5,3377.3,7.2739]
[1642030703238,0.93098502,3377.6,3377.3,7.2739]
[1642030703239,3.77612128,3377.6,3377.3,7.2739]
[1642030703440,3.69061737,3377.6,3377.3,7.209]
[1642030703641,1.1184,3377.5,3377.3,7.46536201]
[1642030704039,0.93098502,3377.4,3377.3,7.46536201]
[1642030704441,0.93098502,3377.4,3377.3,7.46649885]
[1642030704841,0.93098502,3377.5,3377.3,7.46649885]
[1642030705893,3.00113685,3377.7,3377.3,7.46649885]
[1642030705894,0.93098502,3377.6,3377.3,7.46649885]
[1642030710237,1.93098502,3377.6,3377.3,7.46649885]
[1642030710434,0.93098502,3377.6,3377.5,0.00595314]
[1642030710637,0.93098502,3377.6,3377.5,5.314e-05]
[1642030715415,0.93098502,3377.6,3377.3,7.46649885]
[1642030716314,3.65718652,3377.6,3377.3,7.46649885]
[1642030716916,0.93098502,3377.6,3377.3,7.46649885]
[1642030720447,5.4078836,3377.6,3377.3,7.46649885]
[1642030720898,0.1184,3377.5,3377.3,7.46649885]
[1642030722303,2.04938502,3377.6,3377.3,7.46649885]
[1642030722708,0.93098502,3377.4,3377.3,7.46649885]
[1642030724107,1.93098502,3377.6,3377.3,7.46649885]
[1642030725342,0.93098502,3377.5,3377.3,7.46649885]
[1642030727149,1.93098502,3377.6,3377.3,7.46649885]
[1642030728149,0.93098502,3377.5,3377.3,7.46649885]
[1642030730197,1.92038502,3377.5,3377.3,7.46649885]
[1642030730997,0.9894,3377.5,3377.3,7.46649885]
[1642030731402,17.4,3377.4,3377.3,7.46649885]
[1642030732000,18.33098502,3377.4,3377.3,7.46649885]
[1642030733255,20.06783338,3377.4,3377.3,7.46649885]
[1642030734352,20.06783338,3377.4,3377.3,7.46536201]
[1642030735353,20.06783338,3377.4,3377.3,7.45926201]
[1642030735552,20.06783338,3377.4,3377.3,7.44706201]
[1642030737392,21.06783338,3377.4,3377.3,7.44706201]
[1642030737593,21.18623338,3377.4,3377.3,7.44706201]
[1642030737796,21.18623338,3377.4,3377.3,7.36776201]
[1642030737993,21.18623338,3377.4,3377.3,7.36166201]
[1642030739094,21.18623338,3377.4,3377.3,6.47230143]
[1642030739838,21.06783338,3377.4,3377.3,6.47230143]
[1642030741455,21.06783338,3377.4,3377.3,5.58294085]
[1642030742644,21.06783338,3377.4,3377.3,4.69356445]
[1642030742844,21.06783338,3377.4,3377.3,4.67526445]
[1642030743047,21.06783338,3377.4,3377.3,4.66306445]
[1642030745816,21.06783338,3377.4,3377.3,3.77368805]
[1642030745817,4.18740449,3377.4,3377.3,3.77368805]
[1642030746407,22.88740449,3377.4,3377.3,3.77368805]
[1642030746708,18.8184,3377.4,3377.3,3.77368805]
[1642030747346,19.55895,3377.4,3377.3,3.77368805]
[1642030747747,23.74635449,3377.4,3377.3,3.77368805]
[1642030747947,23.00580449,3377.4,3377.3,3.77368805]
[1642030748153,5.60580449,3377.4,3377.3,3.77368805]
[1642030748747,2.66783338,3377.4,3377.3,3.77368805]
[1642030749549,0.93098502,3377.4,3377.3,3.77368805]
[1642030751803,0.93098502,3377.6,3377.3,3.77368805]
[1642030755448,0.93098502,3377.6,3377.5,0.0061847]
[1642030756051,1.93098502,3377.6,3377.5,0.0061847]
[1642030756752,2.43905807,3377.6,3377.5,0.0061847]
[1642030758603,1.43905807,3377.6,3377.5,0.0061847]
[1642030760108,18.83905807,3377.6,3377.5,0.0061847]
[1642030760307,18.83905807,3377.6,3377.3,3.77368805]
[1642030761810,20.06783338,3377.5,3377.3,3.77368805]
[1642030762844,2.66783338,3377.4,3377.3,3.77368805]
[1642030764849,21.58740449,3377.5,3377.3,3.77368805]
[1642030765892,2.66783338,3377.4,3377.3,3.77368805]
[1642030768500,3.17590546,3377.4,3377.3,3.77368805]
[1642030768705,20.57590546,3377.4,3377.3,3.77368805]
[1642030769103,21.57590546,3377.4,3377.3,3.77368805]
[1642030769303,20.57590546,3377.4,3377.3,3.77368805]
[1642030769502,21.57590546,3377.4,3377.3,3.77368805]
[1642030769744,20.57590546,3377.4,3377.3,3.77368805]
[1642030771852,5.0,3377.3,3376.8,7.499]
[1642030772148,20.57590546,3377.4,3376.8,7.499]
[1642030772149,0.74057,3377.1,3376.9,0.00341054]
[1642030772748,1.51391881,3377.1,3376.9,0.00341054]
[1642030772948,18.84166961,3377.0,3376.9,0.00341054]
[1642030773149,20.10666417,3377.0,3376.9,0.00341054]
[1642030773394,1.44166961,3377.0,3376.9,0.00341054]
[1642030774000,18.84166961,3377.0,3376.9,0.00341054]
[1642030774205,19.77265463,3377.0,3376.9,0.00341054]
[1642030775003,22.01764075,3377.0,3376.9,0.00341054]
[1642030775400,22.02052688,3377.0,3376.9,0.00341054]
[1642030777545,21.51238912,3377.0,3376.9,0.00341054]
[1642030778351,22.81238912,3377.0,3376.9,0.00341054]
[1642030778949,23.32053679,3377.0,3376.9,0.00341054]
[1642030779349,23.43893679,3377.0,3376.9,0.00341054]
[1642030780153,22.02053679,3377.0,3376.9,0.00341054]
[1642030780351,22.01765066,3377.0,3376.9,0.00341054]
[1642030781301,25.31765066,3377.0,3376.9,0.00341054]
[1642030781499,26.31765066,3377.0,3376.9,0.00341054]
[1642030781899,25.01765066,3377.0,3376.9,0.00341054]
[1642030787159,26.75285066,3377.0,3376.9,0.00341054]
[1642030787357,27.05285066,3377.0,3376.9,0.00341054]
[1642030787758,0.74071,3376.5,3376.2,0.1184]
[1642030787960,0.00838762,3376.4,3376.2,0.1184]
[1642030788157,1.48147,3376.5,3376.3,0.00341054]
[1642030788398,1.14436302,3376.4,3376.3,0.00341054]
[1642030788617,19.54436302,3376.4,3376.3,0.00341054]
[1642030788801,1.14436302,3376.4,3376.3,0.00341054]
[1642030790005,18.54436302,3376.4,3376.3,0.00341054]
[1642030790208,19.54436302,3376.4,3375.8,1.14089447]
[1642030790405,19.54436302,3376.4,3376.0,0.00170527]
[1642030790606,0.73284896,3376.3,3376.0,0.00170527]
[1642030790808,17.4,3376.2,3375.4,0.00511581]
[1642030791213,1.27766538,3375.5,3375.3,0.00568423]
[1642030791408,1.27766538,3375.5,3375.4,0.1184]
[1642030791808,0.93098502,3376.1,3375.5,1.27681807]
[1642030792007,0.93098502,3376.1,3375.6,0.1184]
[1642030792254,0.93098502,3376.1,3375.6,0.00397896]
[1642030792452,0.93098502,3376.1,3375.7,0.00341054]
[1642030792652,0.93098502,3376.1,3375.5,1.39521807]
[1642030792653,0.93098502,3376.1,3375.6,0.00397896]
[1642030792953,1.53255397,3375.8,3375.7,0.1184]
[1642030793351,1.53255397,3375.8,3375.7,0.12181054]
[1642030793551,1.53255397,3375.8,3375.7,0.00341054]
[1642030793953,1.53255397,3375.8,3375.7,1.28022861]
[1642030794758,1.53255397,3375.8,3375.7,0.00341054]
[1642030794955,2.73364085,3375.8,3375.7,0.00341054]
[1642030795755,1.53255397,3375.8,3375.7,0.00341054]
[1642030796600,1.53255397,3375.8,3375.5,0.00454739]
[1642030797304,1.53255397,3375.8,3375.4,0.00511581]
[1642030797701,0.1184,3376.1,3375.4,0.00511581]
[1642030797901,1.0,3376.1,3375.4,0.00511581]
[1642030798101,1.30210564,3375.7,3375.4,0.00511581]
[1642030798703,1.30210564,3375.7,3375.5,0.5925197]
[1642030798903,1.30210564,3375.7,3375.6,1.15190699]
[1642030799105,1.30210564,3375.7,3375.6,1.15588595]
[1642030799302,1.3422604,3376.0,3375.6,1.15588595]
[1642030799761,1.3422604,3376.0,3375.7,0.00341054]
[1642030800661,1.30210564,3375.9,3375.4,0.30511581]
[1642030800861,1.30210564,3375.9,3375.5,2.27921348]
[1642030801161,1.30210564,3375.9,3375.6,0.00397896]
[1642030801362,1.3422604,3376.0,3375.6,0.00397896]
[1642030801561,1.3422604,3376.0,3375.7,0.5924823]
[1642030801962,1.3422604,3376.0,3375.8,0.00284212]
[1642030801963,3.0,3375.9,3375.8,0.00284212]
[1642030802961,3.0,3375.9,3375.7,0.00341054]
[1642030803400,4.1677,3375.9,3375.7,0.00341054]
[1642030803802,4.1677,3375.9,3375.2,0.00625266]
[1642030804002,4.1677,3375.9,3375.0,0.0073895]
[1642030804806,1.3180433,3375.8,3375.0,0.0073895]
[1642030806107,1.3180433,3375.8,3375.1,0.1184]
[1642030806508,1.3180433,3375.8,3375.2,0.00625266]
[1642030807161,1.3180433,3375.8,3375.0,0.0073895]
[1642030807351,1.3180433,3375.8,3375.1,0.1184]
[1642030807755,1.3180433,3375.8,3375.2,0.00625266]
[1642030808359,1.3180433,3375.8,3375.0,0.0073895]
[1642030808558,1.3180433,3375.8,3375.0,1.78067962]
[1642030808758,1.3180433,3375.8,3375.1,2.34970689]
[1642030808958,1.3180433,3375.8,3375.1,2.47492797]
[1642030809258,1.3180433,3375.8,3375.2,0.00625266]
[1642030809659,1.32692593,3375.6,3375.2,0.00625266]
[1642030810058,1.32692593,3375.6,3375.2,0.59881616]
[1642030810457,1.32692593,3375.6,3375.3,0.00568423]
[1642030811100,1.32692593,3375.6,3375.3,0.12408423]
[1642030811500,1.32692593,3375.6,3375.4,0.00511581]
[1642030812102,1.32692593,3375.6,3375.3,0.12408423]
[1642030812303,1.32692593,3375.6,3375.4,0.00511581]
[1642030814759,1.32692593,3375.6,3375.5,0.1184]
[1642030814957,1.27692593,3375.6,3375.5,0.1184]
[1642030815158,3.0,3375.9,3375.5,2.48189477]
[1642030815559,3.0,3375.9,3375.6,0.00397896]
[1642030816362,1.35594121,3375.8,3375.6,0.00397896]
[1642030816564,1.35594121,3375.8,3375.6,0.59647126]
[1642030816864,1.35594121,3375.8,3375.7,0.00341054]
[1642030818604,2.75118014,3375.8,3375.7,0.00341054]
[1642030819608,1.35594121,3375.8,3375.7,2.36909046]
[1642030819807,1.35594121,3375.8,3375.7,6.86909046]
[1642030820006,1.35594121,3375.8,3375.7,2.36909046]
[1642030821609,4.51015894,3375.9,3375.7,2.36909046]
[1642030821810,4.51015894,3375.9,3375.7,3.49907881]
[1642030822011,4.51015894,3375.9,3375.8,2.28808279]
[1642030823249,5.86898936,3375.9,3375.8,3.41807114]
[1642030824051,5.86898936,3375.9,3375.8,1.13283047]
[1642030824948,5.86898936,3375.9,3375.8,0.00284212]
[1642030825351,5.86898936,3375.9,3375.8,0.00873521]
[1642030826804,5.86898936,3375.9,3375.8,1.13872356]
[1642030827809,5.86898936,3375.9,3375.8,0.00873521]
[1642030828806,5.86898936,3375.9,3375.8,1.13872356]
[1642030829408,5.86898936,3375.9,3375.8,0.00873521]
[1642030830248,5.86898936,3375.9,3375.8,1.13872356]
[1642030835602,5.86898936,3375.9,3375.8,3.47968531]
[1642030835803,5.86898936,3375.9,3375.8,1.13872356]
[1642030836210,5.86898936,3375.9,3375.8,3.48098484]
[1642030837007,5.86898936,3375.9,3375.8,1.13872356]
[1642030838449,5.86898936,3375.9,3375.8,0.00873521]
[1642030839048,5.86898936,3375.9,3375.8,1.13872356]
[1642030844111,5.86898936,3375.9,3375.8,3.47577289]
[1642030844506,4.35883042,3375.9,3375.8,3.47577289]
[1642030844759,1.63700469,3376.6,3376.0,0.03043467]
[1642030844965,1.63700469,3376.6,3376.2,0.5922871]
[1642030845158,1.63700469,3376.6,3376.4,4.89035]
[1642030845159,0.00113685,3376.5,3376.4,4.89035]
[1642030845559,0.00113685,3376.5,3376.4,6.49035]
[1642030845762,0.00113685,3376.5,3376.4,2.34035]
[1642030845966,0.00113685,3376.5,3376.4,0.85875]
[1642030846165,0.00113685,3376.5,3376.2,0.5922871]
[1642030847566,0.00113685,3376.5,3376.2,2.9066712]
[1642030848501,0.00113685,3376.5,3376.2,3.2066712]
[1642030848702,0.00113685,3376.5,3376.3,0.1184]
[1642030848904,0.00113685,3376.5,3376.3,0.85879]
[1642030849103,0.00113685,3376.5,3376.4,2.3629772]
[1642030849306,0.00113685,3376.5,3376.4,2.4813772]
[1642030849506,0.00113685,3376.5,3376.4,2.7813772]
[1642030849704,0.00113685,3376.5,3376.4,2.4813772]
[1642030849905,0.00113685,3376.5,3376.4,0.1184]
[1642030850505,0.00113685,3376.5,3376.4,0.12427229]
[1642030851811,0.00113685,3376.5,3376.4,0.00587229]
[1642030852949,3.00113685,3376.5,3376.4,0.00587229]
[1642030864203,4.00353685,3376.5,3376.4,7.229e-05]
[1642030864404,5.30353685,3376.5,3376.4,7.229e-05]
[1642030864605,22.70353685,3376.5,3376.4,7.229e-05]
[1642030865410,22.70353685,3376.5,3376.1,0.00113685]
[1642030865411,26.31441774,3376.5,3376.1,0.00113685]
[1642030865609,8.61441774,3376.5,3376.1,0.00113685]
[1642030865806,8.61441774,3376.5,3375.6,0.1184]
[1642030865807,8.61441774,3376.5,3375.7,0.00341054]
[1642030866014,1.5385827,3375.8,3375.7,0.00341054]
[1642030866815,1.1362,3376.3,3375.7,0.00341054]
[1642030867016,7.51345624,3376.4,3375.8,0.1184]
[1642030867017,10.2495158,3376.4,3375.8,0.1184]
[1642030867453,9.74125956,3376.4,3375.9,0.00227369]
[1642030868054,1.33364655,3376.3,3375.9,1.21241424]
[1642030868753,1.15562085,3376.1,3375.9,1.21241424]
[1642030869759,1.33364655,3376.0,3375.9,1.21241424]
[1642030870757,1.33364655,3376.0,3375.9,2.89261978]
[1642030871014,1.33364655,3376.0,3375.9,3.23797617]
[1642030871216,1.33364655,3376.0,3375.9,3.30354998]
[1642030871814,1.33364655,3376.0,3375.9,4.55230073]
[1642030872018,1.33364655,3376.0,3375.9,5.515512]
[1642030872217,1.33364655,3376.0,3375.9,5.57682008]
[1642030872421,3.00113685,3376.5,3375.9,5.57682008]
[1642030872618,3.00113685,3376.5,3376.3,1.13321755]
[1642030873020,3.00113685,3376.5,3376.3,2.85109468]
[1642030873221,3.00113685,3376.5,3376.3,1.43321755]
[1642030874018,3.00113685,3376.5,3376.4,0.1184]
[1642030874319,3.00113685,3376.5,3376.4,1.32854055]
[1642030875153,3.0,3376.5,3376.4,1.32854055]
[1642030875555,3.0,3376.5,3376.4,1.63407265]
[1642030876762,3.0,3376.5,3376.4,1.51567265]
[1642030879503,3.0,3376.5,3376.4,0.3055321]
[1642030879707,3.0,3376.5,3376.4,0.0055321]
[1642030884866,3.0,3376.5,3376.4,1.0786107]
[1642030885065,3.0,3376.5,3376.4,1.3786107]
[1642030887511,1.52081301,3377.2,3376.7,1.48049]
[1642030887709,1.52081301,3377.2,3376.6,0.01924895]
[1642030887710,1.52081301,3377.2,3376.6,1.53847121]
[1642030887908,0.00341054,3376.9,3376.7,0.7184]
[1642030888111,0.00341054,3376.9,3376.8,5.39412347]
[1642030888310,1.52081301,3377.2,3377.1,1.32961774]
[1642030888709,1.96357228,3377.3,3377.1,3.30625434]
[1642030888910,2.75298217,3377.7,3377.2,0.1184]
[1642030889110,2.75298217,3377.7,3377.2,1.1184]
[1642030889312,0.00568424,3377.3,3377.2,0.4184]
[1642030889514,0.00568424,3377.3,3376.9,0.1184]
[1642030889758,0.00568424,3377.3,3376.8,1.0730786]
[1642030889957,0.00511581,3377.2,3376.8,1.0730786]
[1642030890160,0.00511581,3377.2,3376.4,2.5225206]
[1642030890357,0.00454739,3377.1,3376.4,2.5169885]
[1642030890760,0.00397897,3377.0,3376.4,2.5169885]
[1642030891161,1.36871018,3376.9,3376.4,2.5169885]
[1642030891361,1.36871018,3376.9,3376.4,2.6353885]
[1642030891560,0.00284212,3376.8,3376.4,2.6353885]
[1642030891764,0.00284212,3376.8,3376.6,0.7403]
[1642030891962,0.0022737,3376.7,3376.6,0.7403]
[1642030893403,0.0022737,3376.7,3376.6,1.8114639]
[1642030894002,0.0022737,3376.7,3376.6,1.0711639]
[1642030895008,0.0022737,3376.7,3376.4,2.5169885]
[1642030895409,0.00170527,3376.6,3376.4,2.5169885]
[1642030895610,0.00170527,3376.6,3376.5,1.3363189]
[1642030895810,0.00170527,3376.6,3376.5,6.0363189]
[1642030896011,0.00170527,3376.6,3376.5,3.0765589]
[1642030897010,0.00170527,3376.6,3376.5,2.0765589]
[1642030897253,0.00170527,3376.6,3376.5,3.17520627]
[1642030897953,0.00170527,3376.6,3376.5,2.87520627]
[1642030899252,0.00170527,3376.6,3376.5,2.13496627]
[1642030901403,0.00170527,3376.6,3376.5,2.43496627]
[1642030901604,0.00170527,3376.6,3376.5,3.17520627]
[1642030901807,0.00170527,3376.6,3376.5,7.57520627]
[1642030902008,0.00170527,3376.6,3376.5,7.69360627]
[1642030904409,0.00170527,3376.6,3376.5,4.29360627]
[1642030904856,0.00170527,3376.6,3376.5,4.17520627]
[1642030907367,0.00170527,3376.6,3376.5,4.29360627]
[1642030909013,0.00170527,3376.6,3376.5,4.17520627]
[1642030914558,3.0,3376.9,3376.8,1.50202031]
[1642030914957,3.0,3376.9,3376.8,2.10202031]
[1642030915360,4.39092082,3376.9,3376.8,3.20066768]
[1642030917109,3.0,3376.9,3376.8,3.20066768]
[1642030918311,3.07,3376.9,3376.8,3.20066768]
[1642030919311,3.07,3376.9,3376.8,1.09864737]
[1642030919513,4.46138399,3376.9,3376.8,1.09864737]
[1642030920365,4.57978399,3376.9,3376.8,0.00548075]
[1642030921469,4.46138399,3376.9,3376.8,0.00548075]
[1642030922570,4.46138399,3376.9,3376.8,1.10744839]
[1642030923409,4.46138399,3376.9,3376.8,0.00548075]
[1642030924211,4.46138399,3376.9,3376.8,1.10710442]
[1642030929258,4.46138399,3376.9,3376.8,1.70710442]
[1642030930059,4.46138399,3376.9,3376.8,1.82550442]
[1642030934119,4.46138399,3376.9,3376.8,1.10710442]
[1642030934318,4.46138399,3376.9,3376.8,1.10170442]
[1642030935356,4.46138399,3376.9,3376.8,1.10710441]
[1642030935556,4.46138399,3376.9,3376.8,0.00548074]
[1642030936661,4.46138399,3376.9,3376.8,1.10710441]
[1642030937567,4.46138399,3376.9,3376.8,0.00548074]
[1642030938410,4.46138399,3376.9,3376.8,1.09208485]
[1642030939210,4.46138399,3376.9,3376.8,0.00548074]
[1642030940216,4.46138399,3376.9,3376.8,1.0921775]
[1642030940412,4.46138399,3376.9,3376.8,1.08669676]
[1642030942256,4.56138399,3376.9,3376.8,1.08669676]
[1642030945466,4.56138399,3376.9,3376.8,1.09188377]
[1642030945661,4.56138399,3376.9,3376.8,1.69188377]
[1642030946111,4.56138399,3376.9,3376.8,1.09188377]
[1642030948616,4.56138399,3376.9,3376.8,1.21028377]
[1642030954125,4.56138399,3376.9,3376.8,0.12358701]
[1642030954327,4.56138399,3376.9,3376.8,0.00518701]
[1642030955127,4.56138399,3376.9,3376.8,1.09125747]
[1642030958569,4.56138399,3376.9,3376.8,0.00518701]
[1642030959768,4.56138399,3376.9,3376.8,1.09114116]
[1642030965565,4.56138399,3376.9,3376.8,1.10654116]
[1642030970312,4.56138399,3376.9,3376.8,1.22494116]
[1642030972366,4.56138399,3376.9,3376.8,1.10654116]
[1642030972768,4.56138399,3376.9,3376.8,0.02058701]
[1642030973566,4.56138399,3376.9,3376.8,1.10643395]
[1642030980967,4.54598399,3376.9,3376.8,1.09103395]
[1642030994665,4.54598399,3376.9,3376.8,1.81703395]
[1642030995562,4.54598399,3376.9,3376.8,1.93679763]
[1642030996166,4.54598399,3376.9,3376.8,1.63679763]
[1642030996769,4.54598399,3376.9,3376.8,1.21079763]
[1642030998169,4.54598399,3376.9,3376.8,1.09239763]
[1642031003662,4.54598399,3376.9,3376.8,1.69239763]
[1642031004064,4.54598399,3376.9,3376.8,1.39239763]
[1642031004263,4.54598399,3376.9,3376.8,1.09239763]
[1642031011068,4.54598399,3376.9,3376.8,1.39239763]
[1642031011264,4.54598399,3376.9,3376.8,1.69239763]
[1642031012866,4.54598399,3376.9,3376.8,1.39239763]
[1642031015215,4.54598399,3376.9,3376.8,1.09239763]
[1642031017968,4.54598399,3376.9,3376.8,1.39239763]
[1642031020676,4.49598399,3376.9,3376.8,1.39239763]
[1642031020914,4.49598399,3376.9,3376.8,1.09239763]
[1642031023019,4.49598399,3376.9,3376.8,0.00655069]
[1642031024021,4.49598399,3376.9,3376.8,1.09205817]
[1642031024865,4.49598399,3376.9,3376.8,0.00655069]
[1642031025972,4.49598399,3376.9,3376.8,1.09207989]
[1642031026172,4.49598399,3376.9,3376.8,1.81807989]
[1642031026372,4.49598399,3376.9,3376.8,4.84920475]
[1642031026576,4.49598399,3376.9,3376.8,5.84920475]
[1642031026975,4.49598399,3376.9,3376.8,3.23647989]
[1642031027175,4.49598399,3376.9,3376.8,4.66140936]
[1642031027374,4.49598399,3376.9,3376.8,5.66140936]
[1642031028173,4.49598399,3376.9,3376.8,5.53586484]
[1642031034388,4.49598399,3376.9,3376.8,3.23647989]
[1642031034587,4.49598399,3376.9,3376.8,4.98927521]
[1642031034791,4.49598399,3376.9,3376.8,3.23647989]
[1642031035691,4.49598399,3376.9,3376.8,2.11807989]
[1642031035914,4.49598399,3376.9,3376.8,3.11807989]
[1642031036120,4.49598399,3376.9,3376.8,2.51807989]
[1642031036320,4.49598399,3376.9,3376.8,1.51807989]
[1642031036520,4.49598399,3376.9,3376.8,1.81807989]
[1642031036923,4.49598399,3376.9,3376.8,2.11807989]
[1642031040171,4.49598399,3376.9,3376.8,1.81807989]
[1642031040571,4.49598399,3376.9,3376.8,1.51807989]
[1642031040975,7.42143809,3376.9,3376.8,1.51807989]
[1642031041173,4.49598399,3376.9,3376.8,1.51807989]
[1642031041774,4.49598399,3376.9,3376.8,0.43255069]
[1642031042275,4.49598399,3376.9,3376.8,0.00655069]
[1642031045221,4.49598399,3376.9,3376.8,1.06351802]
[1642031046027,4.49598399,3376.9,3376.8,0.00655069]
[1642031050686,3.1046,3376.9,3376.8,0.00655069]
[1642031051728,4.54048989,3376.9,3376.8,0.00655069]
[1642031053128,4.54048989,3376.9,3376.8,0.43255069]
[1642031053931,4.54048989,3376.9,3376.8,1.48975839]
[1642031055770,4.54048989,3376.9,3376.8,1.78975839]
[1642031055974,4.54048989,3376.9,3376.8,2.08975839]
[1642031056375,4.54048989,3376.9,3376.8,1.78975839]
[1642031057782,4.54048989,3376.9,3376.8,1.48975839]
[1642031063980,4.54048989,3376.9,3376.8,0.43255069]
[1642031065082,4.54048989,3376.9,3376.8,1.48939954]
[1642031067336,4.54048989,3376.9,3376.8,0.43255069]
[1642031070980,4.54048989,3376.9,3376.8,1.49020963]
[1642031072380,4.54048989,3376.9,3376.8,1.79020963]
[1642031074065,4.54048989,3376.9,3376.8,0.73255069]
[1642031074869,4.54048989,3376.9,3376.8,1.78831016]
[1642031076873,4.54048989,3376.9,3376.8,1.48831016]
[1642031095095,4.49048989,3376.9,3376.8,1.48831016]
[1642031102887,4.39048989,3376.9,3376.8,1.48831016]
[1642031106453,4.39048989,3376.9,3376.8,3.86726481]
[1642031107279,4.39048989,3376.9,3376.8,5.16726481]
[1642031107478,4.39048989,3376.9,3376.8,5.58566481]
[1642031107682,4.29048989,3376.9,3376.8,5.58566481]
[1642031108079,4.29048989,3376.9,3376.8,5.77036481]
[1642031108881,2.8546,3376.9,3376.8,5.77036481]
[1642031109185,2.8461,3376.9,3376.8,5.58566481]
[1642031109383,2.8461,3376.9,3376.8,5.61121484]
[1642031109683,4.13779135,3376.9,3376.8,5.63676487]
[1642031112142,4.13779135,3376.9,3376.8,3.25781022]
[1642031112345,4.13779135,3376.9,3376.8,5.54431707]
[1642031112543,4.13779135,3376.9,3376.8,5.5762405]
[1642031112945,4.13779135,3376.9,3376.8,3.25781022]